fUSD/lending_fUSD_20250617
["ID","MTS","AMOUNT","RATE_DAILY","PERIOD"]
[366232657,1750144244092,-511.83,0.00016552,2]
[366232658,1750144244103,-490.0,0.00016552,2]
[366232659,1750144244114,-499.11,0.00016552,2]
[366232660,1750144244124,-490.0,0.00016552,2]
[366232661,1750144244135,-612.68,0.00016552,2]
[366232662,1750144244145,-490.0,0.00016552,2]
[366232663,1750144244155,-490.0,0.00016552,2]
[366232664,1750144244164,-490.0,0.00016552,2]
[366232665,1750144244174,-500.0,0.00016552,2]
[366232666,1750144244185,-490.0,0.00016552,2]
[366232667,1750144244194,-995.24,0.00016552,2]
[366232668,1750144244206,-490.0,0.00016552,2]
[366232669,1750144244217,-490.0,0.00016552,2]
[366232670,1750144244227,-1026.33,0.00016552,2]
[366232671,1750144244238,-615.53,0.00016552,2]
[366232672,1750144244247,-574.91533895,0.00016552,2]
[366232673,1750144244258,-490.0,0.00016552,2]
[366232674,1750144244268,-2937.54,0.00016552,2]
[366232675,1750144244278,-490.0,0.00016552,2]
[366232676,1750144244287,-490.0,0.00016552,2]
[366232677,1750144244297,-960.3,0.00016552,2]
[366232678,1750144244307,-3467.15,0.00016552,2]
[366232679,1750144244318,-490.0,0.00016552,2]
[366232680,1750144244327,-500.4066331,0.00016552,2]
[366232681,1750144244337,-490.0,0.00016552,2]
[366232682,1750144244347,-490.0,0.00016552,2]
[366232683,1750144244357,-490.0,0.00016552,2]
[366232684,1750144244367,-490.0,0.00016552,2]
[366232685,1750144244377,-490.0,0.00016552,2]
[366232686,1750144244386,-490.0,0.00016552,2]
[366232687,1750144244396,-490.0,0.00016552,2]
[366232688,1750144244406,-1556.24,0.00016552,2]
[366232689,1750144244416,-490.0,0.00016552,2]
[366232690,1750144244425,-490.0,0.00016552,2]
[366232691,1750144244435,-490.0,0.00016552,2]
[366232692,1750144244445,-490.0,0.00016552,2]
[366232693,1750144244454,-490.0,0.00016552,2]
[366232694,1750144244466,-563.38004349,0.00016552,2]
[366232695,1750144244476,-490.0,0.00016552,2]
[366232696,1750144244487,-490.0,0.00016552,2]
[366232697,1750144244497,-3044.21,0.00016552,2]
[366232698,1750144244508,-490.0,0.00016552,2]
[366232699,1750144244519,-1035.84,0.00016552,2]
[366232700,1750144244529,-1245.44,0.00016552,2]
[366232701,1750144244539,-490.0,0.00016552,2]
[366232702,1750144244549,-490.0,0.00016552,2]
[366232703,1750144244559,-490.0,0.00016552,2]
[366232704,1750144244569,-490.0,0.00016552,2]
[366232705,1750144244579,-490.0,0.00016552,2]
[366232706,1750144244589,-490.0,0.00016552,2]
[366232707,1750144244600,-490.0,0.00016552,2]
[366232708,1750144244611,-490.0,0.00016552,2]
[366232709,1750144244621,-490.0,0.00016552,2]
[366232710,1750144244633,-2652.08,0.00016552,2]
[366232711,1750144244643,-490.0,0.00016552,2]
[366232712,1750144244653,-1400.41,0.00016552,2]
[366232713,1750144244663,-490.0,0.00016552,2]
[366232714,1750144244673,-490.0,0.00016552,2]
[366232715,1750144244683,-490.0,0.00016552,2]
[366232716,1750144244694,-490.0,0.00016552,2]
[366232717,1750144244704,-490.0,0.00016552,2]
[366232718,1750144244715,-247.26,0.00016552,2]
[366232719,1750144244726,-517.98,0.00016552,2]
[366232720,1750144244737,-490.0,0.00016552,2]
[366232721,1750144244748,-931.32,0.00016552,2]
[366232722,1750144244759,-490.0,0.00016552,2]
[366232723,1750144244769,-1044.51,0.00016552,2]
[366232724,1750144244780,-629.1226891,0.00016552,2]
[366232725,1750144244790,-1863.29,0.00016552,2]
[366232726,1750144244801,-1326.41,0.00016552,2]
[366232727,1750144244811,-490.0,0.00016552,2]
[366232728,1750144244822,-490.0,0.00016552,2]
[366232729,1750144244832,-490.0,0.00016552,2]
[366232730,1750144244843,-1709.66,0.00016552,2]
[366232731,1750144244854,-490.0,0.00016552,2]
[366232732,1750144244864,-490.0,0.00016552,2]
[366232733,1750144244875,-564.14,0.00016552,2]
[366232734,1750144244885,-495.76206121,0.00016552,2]
[366232735,1750144244896,-604.54,0.00016552,2]
[366232736,1750144244906,-393.76,0.00016552,2]
[366232737,1750144244916,-1000.0,0.00016552,2]
[366232738,1750144244927,-490.0,0.00016552,2]
[366232739,1750144244937,-347.35,0.00016552,2]
[366232740,1750144244948,-490.0,0.00016552,2]
[366232741,1750144244958,-490.0,0.00016552,2]
[366232742,1750144244968,-852.63,0.00016552,2]
[366232743,1750144244978,-490.0,0.00016552,2]
[366232744,1750144244988,-490.0,0.00016552,2]
[366232745,1750144244998,-490.0,0.00016552,2]
[366232746,1750144245009,-544.85,0.00016552,2]
[366232747,1750144245019,-490.0,0.00016552,2]
[366232748,1750144245030,-490.0,0.00016552,2]
[366232749,1750144245041,-490.0,0.00016552,2]
[366232750,1750144245053,-490.0,0.00016552,2]
[366232751,1750144245065,-3045.37,0.00016552,2]
[366232752,1750144245076,-490.0,0.00016552,2]
[366232753,1750144245086,-699.35,0.00016552,2]
[366232754,1750144245097,-490.0,0.00016552,2]
[366232755,1750144245107,-1027.13,0.00016552,2]
[366232756,1750144245118,-490.0,0.00016552,2]
[366232757,1750144245128,-490.0,0.00016552,2]
[366232758,1750144245139,-490.0,0.00016552,2]
[366232759,1750144245149,-620.21,0.00016552,2]
[366232760,1750144245160,-490.0,0.00016552,2]
[366232761,1750144245171,-496.99,0.00016552,2]
[366232762,1750144245181,-490.0,0.00016552,2]
[366232763,1750144245191,-490.0,0.00016552,2]
[366232764,1750144245201,-490.0,0.00016552,2]
[366232765,1750144245213,-490.0,0.00016552,2]
[366232766,1750144245223,-1134.43,0.00016552,2]
[366232767,1750144245234,-490.0,0.00016552,2]
[366232768,1750144245244,-490.0,0.00016552,2]
[366232769,1750144245255,-490.0,0.00016552,2]
[366232770,1750144245266,-490.0,0.00016552,2]
[366232771,1750144245276,-490.0,0.00016552,2]
[366232772,1750144245287,-521.1,0.00016552,2]
[366232773,1750144245297,-490.0,0.00016552,2]
[366232774,1750144245308,-490.0,0.00016552,2]
[366232775,1750144245318,-6182.55,0.00016552,2]
[366232776,1750144245329,-546.54,0.00016552,2]
[366232777,1750144245339,-1717.49,0.00016552,2]
[366232778,1750144245350,-490.0,0.00016552,2]
[366232779,1750144245361,-490.0,0.00016552,2]
[366232780,1750144245371,-490.0,0.00016552,2]
[366232781,1750144245382,-490.0,0.00016552,2]
[366232782,1750144245393,-490.0,0.00016552,2]
[366232783,1750144245403,-490.0,0.00016552,2]
[366232784,1750144245414,-490.0,0.00016552,2]
[366232785,1750144245424,-2595.96,0.00016552,2]
[366232786,1750144245435,-490.0,0.00016552,2]
[366232787,1750144245446,-1366.86,0.00016552,2]
[366232788,1750144245457,-490.0,0.00016552,2]
[366232789,1750144245471,-503.34,0.00016552,2]
[366232790,1750144245481,-844.61,0.00016552,2]
[366232791,1750144245492,-490.0,0.00016552,2]
[366232792,1750144245503,-490.0,0.00016552,2]
[366232793,1750144245513,-490.0,0.00016552,2]
[366232794,1750144245525,-333.19,0.00016552,2]
[366232795,1750144245536,-490.0,0.00016552,2]
[366232796,1750144245547,-490.0,0.00016552,2]
[366232797,1750144245558,-1487.21,0.00016552,2]
[366232798,1750144245568,-521.95,0.00016552,2]
[366232799,1750144245579,-490.0,0.00016552,2]
[366232800,1750144245590,-490.0,0.00016552,2]
[366232801,1750144245600,-490.0,0.00016552,2]
[366232802,1750144245611,-490.0,0.00016552,2]
[366232803,1750144245621,-490.0,0.00016552,2]
[366232804,1750144245632,-490.0,0.00016552,2]
[366232805,1750144245643,-664.32,0.00016552,2]
[366232806,1750144245654,-490.0,0.00016552,2]
[366232807,1750144245665,-490.0,0.00016552,2]
[366232808,1750144245676,-490.0,0.00016552,2]
[366232809,1750144245686,-490.0,0.00016552,2]
[366232810,1750144245697,-786.54,0.00016552,2]
[366232811,1750144245708,-490.0,0.00016552,2]
[366232812,1750144245719,-2442.67,0.00016552,2]
[366232813,1750144245730,-490.0,0.00016552,2]
[366232814,1750144245741,-490.0,0.00016552,2]
[366232815,1750144245751,-490.0,0.00016552,2]
[366232816,1750144245761,-490.0,0.00016552,2]
[366232817,1750144245772,-533.482553,0.00016552,2]
[366232818,1750144245783,-490.0,0.00016552,2]
[366232819,1750144245793,-490.0,0.00016552,2]
[366232820,1750144245804,-490.0,0.00016552,2]
[366232821,1750144245815,-533.482553,0.00016552,2]
[366232822,1750144245826,-863.0,0.00016552,2]
[366232823,1750144245836,-490.0,0.00016552,2]
[366232824,1750144245847,-490.0,0.00016552,2]
[366232825,1750144245858,-490.0,0.00016552,2]
[366232826,1750144245868,-490.0,0.00016552,2]
[366232827,1750144245879,-572.65,0.00016552,2]
[366232828,1750144245890,-490.0,0.00016552,2]
[366232829,1750144245900,-490.0,0.00016552,2]
[366232830,1750144245910,-490.0,0.00016552,2]
[366232831,1750144245923,-490.0,0.00016552,2]
[366232833,1750144245934,-551.88,0.00016552,2]
[366232835,1750144245945,-490.0,0.00016552,2]
[366232837,1750144245956,-490.0,0.00016552,2]
[366232839,1750144245967,-151.0,0.00016552,2]
[366232841,1750144245978,-1259.35,0.00016552,2]
[366232843,1750144245988,-152.55473813,0.00016552,2]
[366232845,1750144245999,-490.0,0.00016552,2]
[366232847,1750144246010,-839.51,0.00016552,2]
[366232849,1750144246020,-490.0,0.00016552,2]
[366232850,1750144246031,-490.0,0.00016552,2]
[366232851,1750144246041,-490.0,0.00016552,2]
[366232853,1750144246051,-490.0,0.00016552,2]
[366232854,1750144246063,-490.0,0.00016552,2]
[366232855,1750144246073,-490.0,0.00016552,2]
[366232856,1750144246083,-490.0,0.00016552,2]
[366232857,1750144246094,-490.0,0.00016552,2]
[366232858,1750144246104,-490.0,0.00016552,2]
[366232859,1750144246114,-515.42,0.00016552,2]
[366232860,1750144246124,-524.76,0.00016552,2]
[366232861,1750144246135,-490.0,0.00016552,2]
[366232862,1750144246146,-506.08195209,0.00016552,2]
[366232863,1750144246157,-666.57,0.00016552,2]
[366232864,1750144246168,-463.14731107,0.00016552,2]
[366232865,1750144246179,-495.15466838,0.00016552,2]
[366232866,1750144246190,-490.0,0.00016552,2]
[366232867,1750144246200,-490.0,0.00016552,2]
[366232868,1750144246211,-490.0,0.00016552,2]
[366232869,1750144246222,-737.3,0.00016552,2]
[366232870,1750144246233,-490.0,0.00016552,2]
[366232871,1750144246243,-490.0,0.00016552,2]
[366232872,1750144246255,-490.0,0.00016552,2]
[366232873,1750144246265,-1038.02,0.00016552,2]
[366232874,1750144246276,-1138.2,0.00016552,2]
[366232875,1750144246287,-490.0,0.00016552,2]
[366232876,1750144246297,-490.0,0.00016552,2]
[366232877,1750144246308,-317.25655579,0.00016552,2]
[366232878,1750144246696,-172.74344421,0.00016552,2]
[366232879,1750144246707,-436.02892259,0.00016552,2]
[366232880,1750144246719,-490.0,0.00016552,2]
[366232881,1750144246733,-552.29,0.00016552,2]
[366232882,1750144246744,-52.32397266,0.00016552,2]
[366232883,1750144246975,-3694.30243513,0.00016451,10]
[366232884,1750144246988,-490.0,0.00016551,2]
[366232885,1750144247002,-490.0,0.00016551,2]
[366232886,1750144247262,-437.67602734,0.00016552,2]
[366232887,1750144247333,-785.79,0.00016552,2]
[366232888,1750144247344,-2786.27,0.00016552,2]
[366232889,1750144247354,-491.25345488,0.00016552,2]
[366232890,1750144247365,-490.0,0.00016552,2]
[366232891,1750144247376,-490.0,0.00016552,2]
[366232892,1750144247386,-490.0,0.00016552,2]
[366232893,1750144247396,-490.0,0.00016552,2]
[366232894,1750144247406,-490.0,0.00016552,2]
[366232895,1750144247415,-490.0,0.00016552,2]
[366232896,1750144247425,-6103.04,0.00016552,2]
[366232897,1750144247436,-490.0,0.00016552,2]
[366232898,1750144247446,-503.35,0.00016552,2]
[366232899,1750144247456,-2039.7,0.00016552,2]
[366232900,1750144247469,-490.0,0.00016552,2]
[366232901,1750144247479,-490.0,0.00016552,2]
[366232902,1750144247491,-490.0,0.00016552,2]
[366232903,1750144247501,-490.0,0.00016552,2]
[366232904,1750144247510,-505.41,0.00016552,2]
[366232905,1750144247520,-152.34,0.00016553,2]
[366232906,1750144247531,-490.0,0.00016553,2]
[366232907,1750144247541,-223.76940647,0.00016553,2]
[366232908,1750144247558,-266.23059353,0.00016553,2]
[366232909,1750144247569,-250.21903769,0.00016553,2]
[366232910,1750144247637,-239.78096231,0.00016553,2]
[366232911,1750144247647,-490.0,0.00016553,2]
[366232912,1750144247657,-547.62099975,0.00016553,2]
[366232913,1750144247667,-490.0,0.00016553,2]
[366232914,1750144247676,-490.0,0.00016553,2]
[366232915,1750144247686,-498.5,0.00016553,2]
[366232916,1750144247696,-10.90163616,0.00016553,2]
[366232917,1750144247708,-479.09836384,0.00016553,2]
[366232918,1750144247718,-490.0,0.00016553,2]
[366232919,1750144247728,-558.73,0.00016553,2]
[366232920,1750144247738,-492.04681376,0.00016553,2]
[366232921,1750144247747,-490.0,0.00016553,2]
[366232922,1750144247758,-512.17444326,0.00016553,2]
[366232923,1750144247768,-490.0,0.00016553,2]
[366232924,1750144247778,-490.0,0.00016553,2]
[366232925,1750144247788,-490.0,0.00016553,2]
[366232926,1750144247798,-490.0,0.00016553,2]
[366232927,1750144247807,-490.0,0.00016553,2]
[366232928,1750144247818,-490.0,0.00016553,2]
[366232929,1750144247827,-490.0,0.00016553,2]
[366232930,1750144247837,-490.0,0.00016553,2]
[366232931,1750144247847,-574.04,0.00016553,2]
[366232932,1750144247857,-490.0,0.00016553,2]
[366232933,1750144247867,-490.0,0.00016553,2]
[366232934,1750144247884,-490.0,0.00016553,2]
[366232935,1750144247894,-490.0,0.00016553,2]
[366232936,1750144247905,-490.0,0.00016553,2]
[366232937,1750144247915,-490.0,0.00016553,2]
[366232938,1750144247926,-490.0,0.00016553,2]
[366232939,1750144247936,-270.08182086,0.00016553,2]
[366232940,1750144247947,-345.16817914,0.00016553,2]
[366232941,1750144247958,-490.0,0.00016553,2]
[366232942,1750144247968,-490.0,0.00016553,2]
[366232943,1750144247979,-490.0,0.00016553,2]
[366232944,1750144247990,-490.0,0.00016553,2]
[366232945,1750144248001,-151.0,0.00016553,2]
[366232946,1750144248011,-151.0,0.00016553,2]
[366232947,1750144248021,-151.375937,0.00016553,2]
[366232948,1750144248032,-151.0,0.00016553,2]
[366232949,1750144248043,-151.0,0.00016553,2]
[366232950,1750144248053,-253.984395,0.00016553,2]
[366232951,1750144248063,-253.984395,0.00016553,2]
[366232952,1750144248074,-467.249497,0.00016553,2]
[366232953,1750144248084,-467.249497,0.00016553,2]
[366232954,1750144248095,-151.0,0.00016553,2]
[366232955,1750144248108,-151.0,0.00016553,2]
[366232956,1750144248119,-151.0,0.00016553,2]
[366232957,1750144248130,-165.641184,0.00016553,2]
[366232958,1750144248141,-151.0,0.00016553,2]
[366232959,1750144248151,-165.641184,0.00016553,2]
[366232960,1750144248161,-287.735976,0.00016553,2]
[366232961,1750144248172,-151.0,0.00016553,2]
[366232962,1750144248183,-151.0,0.00016553,2]
[366232963,1750144248194,-151.0,0.00016553,2]
[366232964,1750144248204,-151.0,0.00016553,2]
[366232965,1750144248215,-245.00986,0.00016553,2]
[366232966,1750144248226,-245.00986,0.00016553,2]
[366232967,1750144248236,-151.0,0.00016553,2]
[366232968,1750144248246,-151.0,0.00016553,2]
[366232969,1750144248257,-151.0,0.00016553,2]
[366232970,1750144248267,-236.168023,0.00016553,2]
[366232971,1750144248277,-236.168023,0.00016553,2]
[366232972,1750144248287,-151.0,0.00016553,2]
[366232973,1750144248297,-151.0,0.00016553,2]
[366232974,1750144248308,-178.373107,0.00016553,2]
[366232975,1750144248323,-151.0,0.00016553,2]
[366232976,1750144248334,-178.373107,0.00016553,2]
[366232977,1750144248345,-151.0,0.00016553,2]
[366232978,1750144248356,-151.0,0.00016553,2]
[366232979,1750144248366,-239.25401,0.00016553,2]
[366232980,1750144248377,-239.25401,0.00016553,2]
[366232981,1750144248388,-151.0,0.00016553,2]
[366232982,1750144248398,-520.338108,0.00016553,2]
[366232983,1750144248409,-520.338108,0.00016553,2]
[366232984,1750144248419,-151.0,0.00016553,2]
[366232985,1750144248429,-154.024867,0.00016553,2]
[366232986,1750144248440,-154.024867,0.00016553,2]
[366232987,1750144248450,-151.0,0.00016553,2]
[366232988,1750144248461,-2700.204782,0.00016553,2]
[366232989,1750144248474,-2700.204782,0.00016553,2]
[366232990,1750144248485,-217.103176,0.00016553,2]
[366232991,1750144248495,-217.103176,0.00016553,2]
[366232992,1750144248505,-1315.415958,0.00016553,2]
[366232993,1750144248516,-151.0,0.00016553,2]
[366232994,1750144248526,-554.550902,0.00016553,2]
[366232995,1750144248536,-1315.415958,0.00016553,2]
[366232996,1750144248546,-554.550902,0.00016553,2]
[366232997,1750144248557,-533.482553,0.00016553,2]
[366232998,1750144248568,-533.482553,0.00016553,2]
[366232999,1750144248578,-151.0,0.00016553,2]
[366233000,1750144248588,-151.0,0.00016554,2]
[366233001,1750144248599,-151.0,0.00016554,2]
[366233002,1750144248610,-151.0,0.00016554,2]
[366233003,1750144248621,-151.0,0.00016554,2]
[366233004,1750144248631,-151.0,0.00016554,2]
[366233005,1750144248642,-299.377071,0.00016554,2]
[366233006,1750144248653,-299.377071,0.00016554,2]
[366233007,1750144248664,-151.0,0.00016554,2]
[366233008,1750144248674,-151.0,0.00016554,2]
[366233009,1750144248684,-1716.58260934,0.0001657,2]
[366233010,1750144248695,-150.0,0.00016581,2]
[366233011,1750144248705,-200.0,0.00016581,2]
[366233012,1750144248715,-200.0,0.00016581,2]
[366233013,1750144248727,-150.0,0.00016581,2]
[366233014,1750144248737,-151.0,0.00016586,2]
[366233015,1750144248748,-151.0,0.00016586,2]
[366233016,1750144248763,-151.0,0.00016586,2]
[366233017,1750144248773,-153.100271,0.00016586,2]
[366233018,1750144248783,-151.0,0.00016586,2]
[366233019,1750144248794,-151.0,0.00016587,2]
[366233020,1750144248804,-151.0,0.00016587,2]
[366233021,1750144248814,-151.0,0.00016587,2]
[366233022,1750144248825,-151.0,0.00016587,2]
[366233023,1750144248836,-151.0,0.00016587,2]
[366233024,1750144248846,-304.37347182,0.00016588,2]
[366233025,1750144248857,-1716.58260934,0.00016593,2]
[366233026,1750144248867,-151.0,0.00016594,2]
[366233027,1750144248878,-151.0,0.00016594,2]
[366233028,1750144248889,-771.3,0.000166,2]
[366233029,1750144248899,-712.82997566,0.000166,2]
[366233030,1750144248909,-151.0,0.000166,2]
[366233031,1750144248919,-151.0,0.000166,2]
[366233032,1750144248929,-197.511765,0.000166,2]
[366233033,1750144248940,-769.0,0.000166,2]
[366233034,1750144248950,-328.95,0.000166,2]
[366233035,1750144248960,-237.0,0.000166,2]
[366233036,1750144248971,-163.19,0.000166,2]
[366233037,1750144248981,-376.0,0.000166,2]
[366233038,1750144248991,-3583.33977479,0.00016601,2]
[366233039,1750144249001,-168.0,0.00016603,2]
[366233040,1750144249012,-190.0,0.00016608,2]
[366233041,1750144249022,-217.71143878,0.00016608,2]
[366233042,1750144249033,-192.88327093,0.00016616,2]
[366233043,1750144249042,-1716.58260934,0.00016617,2]
[366233044,1750144249053,-304.37347182,0.00016627,2]
[366233045,1750144249063,-152.092059,0.00016628,2]
[366233046,1750144249074,-168.0,0.0001663,2]
[366233047,1750144249084,-151.0,0.00016632,2]
[366233048,1750144249094,-1716.58260934,0.00016641,2]
[366233049,1750144249105,-151.0,0.00016642,2]
[366233050,1750144249115,-244.475158,0.00016642,2]
[366233051,1750144249126,-151.0,0.00016642,2]
[366233052,1750144249136,-151.0,0.00016642,2]
[366233053,1750144249148,-151.0,0.00016649,2]
[366233054,1750144249159,-151.0,0.00016649,2]
[366233055,1750144249169,-151.0,0.00016649,2]
[366233056,1750144249180,-151.0,0.00016649,2]
[366233057,1750144249191,-151.0,0.00016649,2]
[366233058,1750144249202,-300.0,0.00016649,2]
[366233059,1750144249212,-151.0,0.00016649,2]
[366233060,1750144249223,-151.0,0.00016649,2]
[366233061,1750144249233,-151.0,0.00016649,2]
[366233062,1750144249243,-151.0,0.00016649,2]
[366233063,1750144249253,-299.377071,0.00016649,2]
[366233064,1750144249263,-299.377071,0.00016649,2]
[366233065,1750144249274,-695.39,0.00016649,2]
[366233066,1750144249284,-264.49,0.00016649,2]
[366233067,1750144249294,-151.0,0.00016649,2]
[366233068,1750144249305,-490.0,0.00016649,2]
[366233069,1750144249315,-151.885998,0.00016649,2]
[366233070,1750144249325,-239.25401,0.00016649,2]
[366233071,1750144249335,-505.04,0.00016649,2]
[366233072,1750144249346,-239.25401,0.00016649,2]
[366233073,1750144249356,-151.0,0.00016649,2]
[366233074,1750144249367,-490.0,0.00016649,2]
[366233075,1750144249376,-490.0,0.00016649,2]
[366233076,1750144249387,-151.0,0.00016649,2]
[366233077,1750144249396,-964.63,0.00016649,2]
[366233078,1750144249406,-154.024867,0.00016649,2]
[366233079,1750144249417,-154.024867,0.00016649,2]
[366233080,1750144249434,-2700.204782,0.00016649,2]
[366233081,1750144249446,-2700.204782,0.00016649,2]
[366233082,1750144249456,-217.103176,0.00016649,2]
[366233083,1750144249471,-217.103176,0.00016649,2]
[366233084,1750144249481,-1315.415958,0.00016649,2]
[366233085,1750144249493,-151.0,0.00016649,2]
[366233086,1750144249503,-554.550902,0.00016649,2]
[366233087,1750144249515,-1315.415958,0.00016649,2]
[366233088,1750144249526,-554.550902,0.00016649,2]
[366233089,1750144249536,-77389.17655601,0.0001665,2]
[366233090,1750144249546,-151.0,0.0001665,2]
[366233091,1750144249557,-151.0,0.0001665,2]
[366233092,1750144249567,-151.0,0.0001665,2]
[366233093,1750144249577,-151.0,0.0001665,2]
[366233094,1750144249588,-151.0,0.0001665,2]
[366233095,1750144249598,-151.0,0.0001665,2]
[366233096,1750144249608,-151.0,0.0001665,2]
[366233097,1750144249618,-151.0,0.0001665,2]
[366233098,1750144249628,-151.0,0.0001665,2]
[366233099,1750144249639,-151.0,0.0001665,2]
[366233100,1750144249649,-261.407682,0.0001665,2]
[366233101,1750144249659,-151.0,0.0001665,2]
[366233102,1750144249670,-152.997505,0.0001665,2]
[366233103,1750144249679,-151.0,0.0001665,2]
[366233104,1750144249690,-151.0,0.0001665,2]
[366233105,1750144249700,-151.0,0.0001665,2]
[366233106,1750144249710,-151.0,0.0001665,2]
[366233107,1750144249720,-151.0,0.0001665,2]
[366233108,1750144249730,-151.0,0.0001665,2]
[366233109,1750144249740,-151.0,0.0001665,2]
[366233110,1750144249750,-151.0,0.0001665,2]
[366233111,1750144249760,-151.0,0.0001665,2]
[366233112,1750144249770,-194.651275,0.0001665,2]
[366233113,1750144249781,-151.0,0.0001665,2]
[366233114,1750144249790,-151.0,0.0001665,2]
[366233115,1750144249800,-151.0,0.0001665,2]
[366233116,1750144249905,-151.0,0.0001665,2]
[366233117,1750144249916,-151.0,0.0001665,2]
[366233118,1750144249927,-151.0,0.0001665,2]
[366233119,1750144249937,-151.0,0.0001665,2]
[366233120,1750144249947,-296.959446,0.0001665,2]
[366233121,1750144249957,-151.0,0.0001665,2]
[366233122,1750144249966,-151.0,0.0001665,2]
[366233123,1750144249976,-151.0,0.0001665,2]
[366233124,1750144249986,-253.984395,0.0001665,2]
[366233125,1750144249996,-253.984395,0.0001665,2]
[366233126,1750144250007,-467.249497,0.0001665,2]
[366233127,1750144250016,-467.249497,0.0001665,2]
[366233128,1750144250026,-151.0,0.0001665,2]
[366233129,1750144250036,-230.25344,0.0001665,2]
[366233130,1750144250045,-151.0,0.0001665,2]
[366233131,1750144250055,-165.641184,0.0001665,2]
[366233132,1750144250064,-244.565472,0.0001665,2]
[366233133,1750144250074,-165.641184,0.0001665,2]
[366233134,1750144250085,-151.0,0.0001665,2]
[366233135,1750144250095,-151.0,0.0001665,2]
[366233136,1750144250104,-151.0,0.0001665,2]
[366233137,1750144250114,-151.0,0.0001665,2]
[366233138,1750144250124,-151.0,0.0001665,2]
[366233139,1750144250134,-245.00986,0.0001665,2]
[366233140,1750144250144,-245.00986,0.0001665,2]
[366233141,1750144250153,-151.0,0.0001665,2]
[366233142,1750144250164,-151.0,0.0001665,2]
[366233143,1750144250174,-151.0,0.0001665,2]
[366233144,1750144250184,-236.168023,0.0001665,2]
[366233145,1750144250194,-236.168023,0.0001665,2]
[366233146,1750144250204,-151.0,0.0001665,2]
[366233147,1750144250214,-151.0,0.0001665,2]
[366233148,1750144250224,-299.377071,0.0001665,2]
[366233149,1750144250234,-178.373107,0.0001665,2]
[366233150,1750144250244,-299.377071,0.0001665,2]
[366233151,1750144250254,-178.373107,0.0001665,2]
[366233152,1750144250264,-151.0,0.0001665,2]
[366233153,1750144250274,-239.25401,0.0001665,2]
[366233154,1750144250284,-239.25401,0.0001665,2]
[366233155,1750144250293,-162.669223,0.0001665,2]
[366233156,1750144250303,-256.944141,0.0001665,2]
[366233157,1750144250313,-520.338108,0.0001665,2]
[366233158,1750144250322,-520.338108,0.0001665,2]
[366233159,1750144250332,-154.024867,0.0001665,2]
[366233160,1750144250342,-154.024867,0.0001665,2]
[366233161,1750144250351,-151.0,0.0001665,2]
[366233162,1750144250362,-2700.204782,0.0001665,2]
[366233163,1750144250371,-2700.204782,0.0001665,2]
[366233164,1750144250381,-217.103176,0.0001665,2]
[366233165,1750144250391,-217.103176,0.0001665,2]
[366233166,1750144250400,-1315.415958,0.0001665,2]